fUSD/lending_fUSD_20251023
["ID","MTS","AMOUNT","RATE_DAILY","PERIOD"]
[392218078,1761261936337,-216.96769124,0.00021,2]
[392218079,1761261943113,-482.86536425,0.0002,2]
[392218080,1761261945342,-187.46597134,0.0002,2]
[392218081,1761261947232,-219.30693218,0.0002,2]
[392218082,1761261950667,-253.30133027,0.0002,2]
[392218083,1761261953266,-508.62298502,0.0002,2]
[392218084,1761261958769,-304.43393434,0.0002,2]
[392218085,1761261961658,-300.0,0.00019999,2]
[392218086,1761261961680,-10.06107978,0.0002,2]
[392218087,1761261963287,195.0,0.00022,120]
[392218088,1761261964209,205.77206204,0.00022,120]
[392218089,1761261965155,-289.93892022,0.0002,2]
[392218094,1761261967311,-182.65430285,0.0002,2]
[392218095,1761261973201,-287.34569715,0.0002,2]
[392218096,1761261975320,-211.56444606,0.0002,2]
[392218097,1761261977612,-258.43555394,0.0002,2]
[392218098,1761261979946,-283.0,0.0002,2]
[392218099,1761261982804,-187.0,0.0002,2]
[392218100,1761261986081,-199.10891131,0.0002,2]
[392218101,1761261987813,-214.84082455,0.0002,2]
[392218102,1761261992424,-169.05026414,0.0002,2]
[392218103,1761261994475,-289.73762311,0.0002,2]
[392218104,1761261996254,-181.40810856,0.00019999,2]
[392218105,1761261996280,-148.19380963,0.00019999,2]
[392218108,1761261999891,-336.63667076,0.00019999,2]
[392218109,1761261999918,-24.2263416,0.00019999,2]
[392218110,1761262001701,-143.14325197,0.00019999,2]
[392218111,1761262001726,-125.21390717,0.0002,2]
[392218112,1761262003318,-228.36034156,0.0002,2]
[392218113,1761262005496,-398.99781804,0.0002,2]
[392218114,1761262007777,-357.41725042,0.00019999,2]
[392218115,1761262010003,-142.58274958,0.00019999,2]
[392218116,1761262010030,-26.00703611,0.00019999,2]
[392218117,1761262011844,-162.91502464,0.00019999,2]
[392218118,1761262013999,-161.20902467,0.00019999,2]
[392218119,1761262016328,-149.86891458,0.00019999,2]
[392218120,1761262016356,-22.58108542,0.00019999,2]
[392218121,1761262018173,-231.94405486,0.00019999,2]
[392218122,1761262019849,-222.72966956,0.00019999,2]
[392218123,1761262022735,-346.03865127,0.000199,2]
[392218124,1761262022760,-180.74054152,0.00019998,2]
[392218125,1761262025997,-119.25945848,0.00019998,2]
[392218126,1761262026019,-151.06276477,0.00019998,2]
[392218127,1761262027149,-269.73849016,0.00019998,2]
[392218128,1761262044507,-283.0,0.00019898,2]
[392218129,1761262047400,-78.110072,0.00019898,2]
[392218130,1761262047425,-223.889928,0.00019998,2]
[392218131,1761262050009,-205.30881707,0.00019998,2]
[392218132,1761262050036,-22.74519016,0.00019999,2]
[392218133,1761262050065,-73.94599277,0.00019999,2]
[392218134,1761262053722,-302.0,0.00019999,2]
[392218135,1761262055968,-124.05400723,0.00019999,2]
[392218136,1761262055998,-80.53345959,0.00019999,2]
[392218137,1761262062291,-401.0,0.00019999,2]
[392218138,1761262066118,-18.46654041,0.00019999,2]
[392218139,1761262066147,-283.53345959,0.00019999,2]
[392218140,1761262069489,-216.46654041,0.00019999,2]
[392218141,1761262069522,-187.06695935,0.00019999,2]
[392218142,1761262072935,-218.0040444,0.00019999,2]
[392218143,1761262074190,2000.0,0.00015,2]
[392218144,1761262074221,1798199.731324,0.00015,2]
[392218145,1761262076135,-94.92899625,0.00019999,2]
[392218146,1761262077055,-283.53345959,0.00019999,2]
[392218147,1761262079522,-216.46654041,0.00019999,2]
[392218148,1761262079553,-85.53345959,0.00019999,2]
[392218149,1761262082756,-300.0,0.00019998,2]
[392218150,1761262082785,-2.0,0.00019999,2]
[392218152,1761262085088,-171.47,0.00019999,2]
[392218153,1761262086396,-240.99654041,0.00019999,2]
[392218154,1761262086427,-32.93098882,0.00019999,2]
[392218155,1761262104516,-245.2372681,0.00019999,2]
[392218156,1761262108404,-189.0,0.00019999,2]
[392218157,1761262111292,-32.83174308,0.00019999,2]
[392218158,1761262111321,-278.32230391,0.00019999,2]
[392218161,1761262113898,-221.67769609,0.00019999,2]
[392218162,1761262113927,-57.46365478,0.00019999,2]
[392218163,1761262119700,2015.29996,0.00015,2]
[392218164,1761262126976,156.02,0.00017517,2]
[392218165,1761262147153,-442.53634522,0.00019999,2]
[392218166,1761262147182,-500.0,0.00019999,2]
[392218167,1761262147211,-500.0,0.00019999,2]
[392218168,1761262147239,-500.0,0.00019999,2]
[392218169,1761262147269,-500.0,0.00019999,2]
[392218170,1761262147297,-500.0,0.00019999,2]
[392218171,1761262147325,-500.0,0.00019999,2]
[392218172,1761262147352,-500.0,0.00019999,2]
[392218173,1761262147376,-500.0,0.00019999,2]
[392218174,1761262147399,-500.0,0.00019999,2]
[392218175,1761262147424,-500.0,0.00019999,2]
[392218176,1761262147449,-500.0,0.00019999,2]
[392218177,1761262147490,-490.3515989,0.00019999,2]
[392218178,1761262147517,-500.0,0.00019999,2]
[392218179,1761262147540,-23281.35681588,0.0002,2]
[392218180,1761262148125,-49632.69878,0.0002,2]
[392218181,1761262149104,-53335.06983635,0.0002,2]
[392218182,1761262149125,-1516.42234905,0.0002,2]
[392218183,1761262149146,-5839.44505006,0.0002,2]
[392218184,1761262149167,-1033.51002156,0.0002,2]
[392218185,1761262149189,-104.47500298,0.00020998,2]
[392218186,1761262163479,66052.83728945,0.0002,7]
[392218187,1761262163513,89531.16271055,0.0002,7]
[392218188,1761262171106,-1340.52499702,0.00020998,2]
[392218189,1761262171128,-626.54265456,0.00021,2]
[392218190,1761262171150,-156.02,0.00021896,2]
[392218191,1761262171175,-195.0,0.00021999,2]
[392218192,1761262171195,-250.0,0.00021999,2]
[392218193,1761262171220,-450.0,0.00022058,2]
[392218194,1761262171242,-156.02,0.00026276,2]
[392218195,1761262171266,-156.02,0.00030655,2]
[392218196,1761262231032,280.5388263,0.00020046,2]
[392218197,1761262231269,280.5388263,0.00022692,2]
[392218198,1761262231558,280.5388263,0.00025338,2]
[392218200,1761262231755,280.5388263,0.00027985,2]
[392218208,1761262231862,-200.0,0.00034769,2]
[392218209,1761262231871,-150.0,0.00034769,2]
[392218210,1761262231882,-300.0,0.00034901,120]
[392218211,1761262231891,-156.02,0.00035034,2]
[392218212,1761262231900,-84.75,0.00035121,120]
[392218213,1761262231912,-215.25,0.00035121,120]
[392218214,1761262231922,-319.16479733,0.00035121,120]
[392218215,1761262231931,-187.88401736,0.00035158,120]
[392218216,1761262231943,-425.83598264,0.00035158,120]
[392218217,1761262231952,-553.81001736,0.000353,2]
[392218218,1761262231964,-181.91049229,0.000353,2]
[392218219,1761262231974,-150.0,0.00035345,2]
[392218220,1761262231985,-150.0,0.00035345,120]
[392218221,1761262231994,-168.0,0.00035448,2]
[392218222,1761262232004,-189.0,0.00035454,3]
[392218223,1761262232014,-38.64950771,0.00035454,2]
[392218224,1761262232067,-313.0,0.00035454,2]
[392218225,1761262232079,-48.35049229,0.00035454,2]
[392218226,1761262232089,-480.69950771,0.00035454,3]
[392218227,1761262232100,-109.30049229,0.00035454,3]
[392218228,1761262232110,-5823.25573106,0.00035455,2]
[392218229,1761262232122,-469.80788766,0.00035455,2]
[392218230,1761262232133,-2951.793793,0.00035455,2]
[392218231,1761262232148,-755.13258828,0.00035455,2]
[392218232,1761262232158,-9999.99,0.00035455,2]
[392218233,1761262232168,-150.99,0.00035455,30]
[392218234,1761262232178,-999.99,0.00035455,2]
[392218235,1761262232189,-150.99,0.00035455,2]
[392218236,1761262232198,-306.18,0.00035455,2]
[392218237,1761262232207,-9999.99,0.00035455,2]
[392218238,1761262232218,-2007.27,0.00035455,2]
[392218239,1761262232227,-1059.97,0.00035455,2]
[392218240,1761262232237,-1516.97,0.00035455,2]
[392218241,1761262232247,-1000.0,0.0003551,2]
[392218242,1761262232257,-218.0,0.0003553,2]
[392218243,1761262232267,-398.17,0.00035546,2]
[392218244,1761262232276,-168.0,0.00035558,2]
[392218245,1761262232286,-277.35679052,0.00035724,2]
[392218246,1761262232295,-168.0,0.00035765,2]
[392218247,1761262232305,-166.66,0.00035779,30]
[392218248,1761262232315,-168.0,0.00036194,2]
[392218249,1761262232325,-624.88929825,0.00036201,2]
[392218250,1761262232335,-311.05,0.00036246,2]
[392218251,1761262232344,-695.716,0.00036261,44]
[392218252,1761262232355,-3858.3781406,0.00036347,2]
[392218253,1761262232364,-200.0,0.00036347,2]
[392218254,1761262232374,-721.12765535,0.00036347,2]
[392218255,1761262232384,-500.0,0.00036347,2]
[392218256,1761262232393,-219.10746129,0.00036347,2]
[392218257,1761262232407,-500.0,0.00036347,2]
[392218258,1761262232416,-500.0,0.00036347,2]
[392218259,1761262232426,-500.0,0.00036347,2]
[392218260,1761262232436,-500.0,0.00036347,2]
[392218261,1761262232446,-500.0,0.00036347,2]
[392218262,1761262232456,-500.0,0.00036347,2]
[392218263,1761262232465,-500.0,0.00036347,2]
[392218264,1761262232475,-500.0,0.00036347,2]
[392218265,1761262232484,-500.0,0.00036347,2]
[392218266,1761262232494,-500.0,0.00036347,2]
[392218267,1761262232507,-500.0,0.00036347,2]
[392218268,1761262232517,-500.0,0.00036347,2]
[392218269,1761262232526,-500.0,0.00036347,2]
[392218270,1761262232537,-500.0,0.00036347,2]
[392218271,1761262232547,-500.0,0.00036347,2]
[392218272,1761262232556,-500.0,0.00036347,2]
[392218273,1761262232566,-269.00256142,0.00036347,2]
[392218274,1761262232576,-500.0,0.00036347,2]
[392218275,1761262232586,-500.0,0.00036347,2]
[392218276,1761262232599,-500.0,0.00036347,2]
[392218277,1761262232609,-500.0,0.00036347,2]
[392218278,1761262232618,-500.0,0.00036347,2]
[392218279,1761262232628,-500.0,0.00036347,2]
[392218280,1761262232638,-322.6107,0.00036347,2]
[392218281,1761262232647,-500.0,0.00036347,2]
[392218282,1761262232657,-500.0,0.00036347,2]
[392218283,1761262232667,-500.0,0.00036347,2]
[392218284,1761262232677,-500.0,0.00036347,2]
[392218285,1761262232687,-500.0,0.00036347,2]
[392218286,1761262232696,-500.0,0.00036347,2]
[392218287,1761262232706,-500.0,0.00036347,2]
[392218288,1761262232716,-500.0,0.00036347,2]
[392218289,1761262232726,-500.0,0.00036347,2]
[392218290,1761262232736,-500.0,0.00036347,2]
[392218291,1761262232746,-500.0,0.00036347,2]
[392218292,1761262232755,-150.0,0.00036369,2]
[392218293,1761262232764,-150.0,0.00036369,2]
[392218294,1761262232774,-150.0,0.00036369,2]
[392218295,1761262232784,-150.0,0.00036369,2]
[392218296,1761262232794,-150.0,0.00036369,2]
[392218297,1761262232808,-500.0,0.00036369,2]
[392218298,1761262232818,-150.0,0.00036369,2]
[392218299,1761262232828,-150.0,0.00036369,2]
[392218300,1761262232838,-210.74625113,0.00036369,2]
[392218301,1761262232847,-500.0,0.00036369,2]
[392218302,1761262232857,-150.0,0.00036369,2]
[392218303,1761262232867,-150.0,0.00036369,2]
[392218304,1761262232876,-250.0,0.00036369,2]
[392218305,1761262232886,-150.0,0.00036369,2]
[392218306,1761262232895,-500.0,0.00036369,2]
[392218307,1761262232904,-150.0,0.00036369,2]
[392218308,1761262232914,-500.0,0.00036369,2]
[392218309,1761262232923,-150.0,0.00036369,2]
[392218310,1761262232934,-500.0,0.00036369,2]
[392218311,1761262232943,-150.0,0.00036369,2]
[392218312,1761262232953,-168.0,0.00036369,2]
[392218313,1761262232963,-150.0,0.00036424,2]
[392218314,1761262232972,-150.0,0.00036424,2]
[392218316,1761262232982,-150.0,0.00036424,2]
[392218318,1761262232992,-150.0,0.00036424,2]
[392218320,1761262233002,-508.66087008,0.00036424,2]
[392218322,1761262233011,-206.21851696,0.00036424,2]
[392218324,1761262233020,-150.0,0.00036424,2]
[392218326,1761262233030,-500.0,0.00036424,2]
[392218328,1761262233039,-150.0,0.00036424,2]
[392218330,1761262233049,-150.10592199,0.00036424,2]
[392218332,1761262233058,-150.0,0.00036424,2]
[392218334,1761262233067,-500.0,0.00036424,2]
[392218336,1761262233077,-500.0,0.00036424,2]
[392218338,1761262233086,-500.0,0.00036424,2]
[392218340,1761262233096,-150.0,0.00036424,2]
[392218342,1761262233105,-2500.0,0.00036448,2]
[392218344,1761262233114,-200.0,0.00036479,2]
[392218346,1761262233124,-150.0,0.00036479,2]
[392218348,1761262233135,-150.0,0.00036479,2]
[392218350,1761262233145,-150.0,0.00036479,2]
[392218352,1761262233155,-500.0,0.00036479,2]
[392218354,1761262233164,-150.0,0.00036479,2]
[392218357,1761262233175,-150.0,0.00036479,2]
[392218359,1761262233184,-350.0,0.00036479,2]
[392218360,1761262233194,-500.0,0.00036479,2]
[392218363,1761262233203,-400.0,0.00036479,2]
[392218365,1761262233213,-150.0,0.00036479,2]
[392218367,1761262233223,-166.66,0.00036487,30]
[392218369,1761262233232,-223.40756274,0.00036525,15]
[392218371,1761262233243,-150.0,0.00036533,2]
[392218373,1761262233252,-200.0,0.00036533,2]
[392218375,1761262233262,-402.22862341,0.00036533,2]
[392218376,1761262233272,-150.0,0.00036533,2]
[392218377,1761262233282,-250.0,0.00036533,2]
[392218378,1761262233292,-150.0,0.00036533,2]
[392218379,1761262233301,-248.0,0.00036534,2]
[392218380,1761262233312,-31308.1176257,0.00036538,3]
[392218381,1761262233322,-197.2008,0.00036548,120]
[392218383,1761262233332,-1000.0,0.00036548,2]
[392218385,1761262233342,-205.7861318,0.00036548,9]
[392218387,1761262233352,-251.0,0.00036567,2]
[392218388,1761262233362,-5000.0,0.00036568,2]
[392218389,1761262233371,-520.11989655,0.00036568,2]
[392218390,1761262233381,-3422.13153963,0.00036568,2]
[392218391,1761262233390,-237.82819955,0.00036588,2]
[392218392,1761262233400,-154.50843744,0.00036588,2]
[392218393,1761262233410,-500.0,0.00036625,120]
[392218394,1761262233419,-393.22439183,0.00036625,120]
[392218395,1761262233428,-150.0,0.00036626,2]
[392218396,1761262233438,-262.54,0.00036626,14]
[392218397,1761262233447,-15654.0588129,0.00036637,3]
[392218398,1761262233457,-1477.1247825,0.00036644,2]
[392218399,1761262233466,-500.0,0.00036647,7]
[392218400,1761262233476,-500.0,0.00036647,7]
[392218401,1761262233485,-500.0,0.00036647,7]
[392218402,1761262233495,-500.0,0.00036647,7]
[392218403,1761262233505,-500.0,0.00036647,7]
[392218404,1761262233518,-500.0,0.00036647,7]
[392218405,1761262233528,-500.0,0.00036647,30]
[392218406,1761262233537,-1000.0,0.00036647,30]
[392218407,1761262233547,-1000.0,0.00036647,30]
[392218408,1761262233558,-1000.0,0.00036647,30]
[392218409,1761262233568,-1000.0,0.00036647,30]
[392218410,1761262233578,-1000.0,0.00036647,30]
[392218411,1761262233589,-1000.0,0.00036647,30]
[392218412,1761262233599,-500.0,0.00036647,120]
[392218413,1761262233609,-500.0,0.00036647,120]
[392218414,1761262233619,-200.0,0.00036648,2]
[392218415,1761262233628,-154.401262,0.00036648,30]
[392218416,1761262233638,-153.16293,0.00036648,30]
[392218417,1761262233647,-151.0,0.00036648,30]
[392218418,1761262233657,-151.0,0.00036648,30]
[392218419,1761262233668,-151.0,0.00036648,30]
[392218420,1761262233678,-151.0,0.00036648,30]
[392218421,1761262233687,-151.0,0.00036648,30]
[392218422,1761262233697,-151.0,0.00036648,30]
[392218423,1761262233707,-151.0,0.00036648,30]
[392218424,1761262233716,-151.0,0.00036648,30]
[392218425,1761262233726,-151.0,0.00036648,30]
[392218426,1761262233735,-151.0,0.00036648,30]
[392218427,1761262233746,-151.0,0.00036648,30]
[392218428,1761262233756,-151.0,0.00036648,30]
[392218429,1761262233765,-274.420913,0.00036648,30]
[392218430,1761262233775,-151.0,0.00036648,30]
[392218431,1761262233784,-151.0,0.00036648,30]
[392218432,1761262233794,-151.0,0.00036648,30]
[392218433,1761262233803,-164.374606,0.00036648,30]
[392218434,1761262233813,-151.0,0.00036648,30]
[392218435,1761262233823,-31308.1176257,0.00036658,3]
[392218436,1761262233833,-151.0,0.00036658,2]
[392218437,1761262233842,-182.23088544,0.00036658,2]
[392218438,1761262233852,-151.0,0.00036668,30]
[392218439,1761262233863,-225.205601,0.00036668,30]
[392218440,1761262233873,-151.0,0.00036668,30]
[392218441,1761262233883,-151.0,0.00036668,30]
[392218442,1761262233893,-151.0,0.00036668,30]
[392218443,1761262233903,-284.862604,0.00036668,15]
[392218444,1761262233912,-151.0,0.00036668,30]
[392218445,1761262233921,-151.0,0.00036668,30]
[392218446,1761262233932,-274.82663,0.00036668,30]
[392218447,1761262233942,-151.0,0.00036668,30]
[392218448,1761262233951,-151.0,0.00036668,30]
[392218449,1761262233961,-151.0,0.00036668,30]
[392218450,1761262233971,-151.0,0.00036668,30]
[392218451,1761262233980,-151.0,0.00036668,30]
[392218452,1761262233990,-151.0,0.00036668,30]
[392218453,1761262234000,-151.0,0.00036668,30]
[392218454,1761262234011,-151.0,0.00036668,30]
[392218455,1761262234022,-151.0,0.00036668,30]
[392218456,1761262234032,-151.0,0.00036668,30]
[392218457,1761262234041,-151.0,0.00036668,30]
[392218458,1761262234051,-294.089227,0.00036668,30]
[392218459,1761262234061,-151.0,0.00036668,30]
[392218460,1761262234071,-151.0,0.00036668,30]
[392218461,1761262234081,-151.0,0.00036668,30]
[392218462,1761262234090,-151.0,0.00036668,30]
[392218463,1761262234099,-151.0,0.00036668,30]
[392218464,1761262234109,-151.0,0.00036668,30]
[392218465,1761262234119,-151.0,0.00036668,30]
[392218466,1761262234128,-160.145493,0.00036668,30]
[392218467,1761262234139,-151.0,0.00036668,30]
[392218468,1761262234150,-151.0,0.00036668,30]
[392218469,1761262234159,-151.0,0.00036668,30]
[392218470,1761262234169,-151.0,0.00036668,30]
[392218471,1761262234178,-151.0,0.00036668,30]
[392218472,1761262234189,-151.0,0.00036668,30]
[392218473,1761262234199,-214.36247,0.00036668,30]
[392218474,1761262234208,-151.0,0.00036668,30]
[392218475,1761262234217,-151.0,0.00036668,30]
[392218476,1761262234226,-151.0,0.00036668,30]
[392218477,1761262234236,-151.0,0.00036668,30]
[392218478,1761262234246,-151.0,0.00036668,30]
[392218479,1761262234256,-151.0,0.00036668,30]
[392218480,1761262234267,-151.0,0.00036668,30]
[392218481,1761262234278,-151.0,0.00036668,30]
[392218482,1761262234289,-151.0,0.00036668,30]
[392218483,1761262234299,-151.0,0.00036668,30]
[392218484,1761262234310,-151.0,0.00036668,30]
[392218485,1761262234321,-151.0,0.00036668,30]
[392218486,1761262234331,-151.0,0.00036668,30]
[392218487,1761262234341,-151.0,0.00036668,30]
[392218488,1761262234351,-151.0,0.00036668,30]
[392218489,1761262234360,-151.0,0.00036668,30]
[392218490,1761262234369,-151.0,0.00036668,30]
[392218491,1761262234379,-151.0,0.00036668,30]
[392218492,1761262234389,-151.0,0.00036668,30]
[392218493,1761262234399,-151.0,0.00036668,30]
[392218494,1761262234408,-779.400364,0.00036668,30]
[392218495,1761262234417,-779.400364,0.00036668,30]
[392218496,1761262234427,-779.400364,0.00036668,30]
[392218497,1761262234437,-779.400364,0.00036668,30]
[392218498,1761262234446,-779.400364,0.00036668,30]
[392218499,1761262234455,-779.400364,0.00036668,30]
[392218500,1761262234465,-779.400364,0.00036668,30]
[392218501,1761262234475,-779.400364,0.00036668,30]
[392218502,1761262234484,-779.400364,0.00036668,30]
[392218503,1761262234493,-779.400364,0.00036668,30]
[392218504,1761262234504,-779.400364,0.00036668,30]
[392218505,1761262234517,-779.400364,0.00036668,30]
[392218506,1761262234526,-779.400364,0.00036668,30]
[392218507,1761262234536,-779.400364,0.00036668,30]
[392218508,1761262234546,-779.400364,0.00036668,30]
[392218509,1761262234555,-779.400364,0.00036668,30]
[392218510,1761262234565,-162.247465,0.00036668,30]
[392218511,1761262234575,-151.0,0.00036668,30]
[392218512,1761262234585,-151.0,0.00036668,30]
[392218513,1761262234598,-151.0,0.00036668,30]
[392218514,1761262234609,-152.860398,0.00036668,30]
[392218515,1761262234619,-151.0,0.00036668,30]
[392218516,1761262234629,-151.0,0.00036668,30]
[392218517,1761262234639,-151.0,0.00036668,30]
[392218518,1761262234649,-151.0,0.00036668,30]
[392218519,1761262234658,-151.0,0.00036668,30]
[392218520,1761262234668,-151.0,0.00036668,30]
[392218521,1761262234677,-151.0,0.00036668,30]
[392218522,1761262234687,-151.0,0.00036668,30]
[392218523,1761262234696,-270.020899,0.00036668,30]
[392218524,1761262234706,-151.0,0.00036668,30]
[392218525,1761262234716,-151.0,0.00036668,30]
[392218526,1761262234726,-151.0,0.00036668,30]
[392218527,1761262234737,-151.0,0.00036668,30]
[392218528,1761262234747,-151.0,0.00036668,30]
[392218529,1761262234756,-151.0,0.00036668,30]
[392218530,1761262234766,-151.0,0.00036668,30]
[392218531,1761262234776,-151.0,0.00036668,30]
[392218532,1761262234786,-151.0,0.00036668,30]
[392218533,1761262234796,-151.0,0.00036668,30]
[392218534,1761262234806,-151.0,0.00036668,30]
[392218535,1761262234815,-151.0,0.00036668,30]
[392218536,1761262234824,-151.0,0.00036668,30]
[392218537,1761262234834,-151.0,0.00036668,30]
[392218538,1761262234844,-151.0,0.00036668,30]
[392218539,1761262234854,-264.451516,0.00036668,30]
[392218540,1761262234864,-151.0,0.00036668,30]
[392218541,1761262234874,-151.0,0.00036668,30]
[392218542,1761262234884,-151.0,0.00036668,30]
[392218543,1761262234894,-151.0,0.00036668,30]
[392218544,1761262234903,-151.0,0.00036668,30]
[392218545,1761262234913,-151.0,0.00036668,30]
[392218546,1761262234923,-151.0,0.00036668,30]
[392218547,1761262234933,-151.0,0.00036668,30]
[392218548,1761262234942,-151.0,0.00036668,30]
[392218549,1761262234952,-151.0,0.00036668,30]
[392218550,1761262234962,-151.0,0.00036668,30]
[392218551,1761262234971,-151.0,0.00036668,30]
[392218552,1761262234981,-235.355589,0.00036668,30]
[392218553,1761262234990,-151.0,0.00036668,30]
[392218554,1761262235001,-152.433168,0.00036668,30]
[392218555,1761262235010,-151.0,0.00036668,30]
[392218556,1761262235020,-151.0,0.00036668,30]
[392218557,1761262235031,-151.0,0.00036668,30]
[392218558,1761262235042,-268.880816,0.00036668,30]
[392218559,1761262235052,-151.0,0.00036668,30]
[392218560,1761262235063,-151.0,0.00036668,30]
[392218561,1761262235072,-151.0,0.00036668,30]
[392218562,1761262235083,-151.0,0.00036668,30]
[392218563,1761262235094,-151.0,0.00036668,30]
[392218564,1761262235103,-151.0,0.00036668,30]
[392218565,1761262235114,-151.0,0.00036668,30]
[392218566,1761262235124,-161.398088,0.00036668,30]
[392218567,1761262235134,-151.0,0.00036668,30]
[392218568,1761262235144,-151.0,0.00036668,30]
[392218569,1761262235153,-151.0,0.00036668,30]
[392218570,1761262235164,-151.0,0.00036668,30]
[392218571,1761262235174,-151.0,0.00036668,30]
[392218572,1761262235183,-151.0,0.00036668,30]
[392218573,1761262235194,-151.0,0.00036668,30]
[392218574,1761262235204,-151.0,0.00036668,30]
[392218575,1761262235215,-151.0,0.00036668,30]
[392218576,1761262235224,-151.0,0.00036668,30]
[392218577,1761262235236,-159.74437,0.00036668,30]
[392218578,1761262235246,-251.288916,0.00036668,30]
[392218579,1761262235256,-154.753151,0.00036668,30]
[392218580,1761262235266,-151.0,0.00036668,30]
[392218581,1761262235276,-151.0,0.00036668,30]
[392218582,1761262235285,-151.0,0.00036668,30]
[392218583,1761262235295,-151.0,0.00036668,30]
[392218584,1761262235304,-151.0,0.00036668,30]
[392218585,1761262235314,-151.0,0.00036668,30]
[392218586,1761262235325,-151.0,0.00036668,30]
[392218587,1761262235336,-151.0,0.00036668,30]
[392218588,1761262235346,-151.0,0.00036668,30]
[392218589,1761262235356,-183.967211,0.00036668,30]
[392218590,1761262235366,-151.0,0.00036668,30]
[392218591,1761262235375,-151.0,0.00036668,30]
[392218592,1761262235384,-151.0,0.00036668,30]
[392218593,1761262235394,-151.0,0.00036668,30]
[392218594,1761262235404,-151.0,0.00036668,30]
[392218595,1761262235414,-151.0,0.00036668,30]
[392218596,1761262235424,-188.978806,0.00036668,30]
[392218597,1761262235434,-151.0,0.00036668,30]
[392218598,1761262235444,-151.0,0.00036668,30]
[392218599,1761262235453,-151.0,0.00036668,30]
[392218600,1761262235463,-151.0,0.00036668,30]
[392218601,1761262235472,-151.0,0.00036668,30]
[392218602,1761262235482,-151.0,0.00036668,30]
[392218603,1761262235492,-151.0,0.00036668,30]
[392218604,1761262235504,-151.0,0.00036668,30]
[392218605,1761262235520,-151.0,0.00036668,30]
[392218606,1761262235529,-151.0,0.00036668,30]
[392218607,1761262235540,-151.0,0.00036668,30]
[392218608,1761262235551,-151.0,0.00036668,30]
[392218609,1761262235561,-151.0,0.00036668,30]
[392218610,1761262235799,-151.0,0.00036668,30]
[392218611,1761262235832,-151.0,0.00036668,30]
[392218612,1761262235842,-151.0,0.00036668,30]
[392218613,1761262235851,-151.0,0.00036668,30]
[392218614,1761262235861,-151.0,0.00036668,30]
[392218615,1761262235870,-172.121322,0.00036668,30]
[392218616,1761262235879,-182.30666,0.00036668,30]
[392218617,1761262235888,-182.30666,0.00036668,30]
[392218618,1761262235898,-182.30666,0.00036668,30]
[392218619,1761262235907,-182.30666,0.00036668,30]
[392218620,1761262235916,-182.30666,0.00036668,30]
[392218621,1761262235925,-182.30666,0.00036668,30]
[392218622,1761262235934,-182.30666,0.00036668,30]
[392218623,1761262235944,-182.30666,0.00036668,30]
[392218624,1761262235953,-182.30666,0.00036668,30]
[392218625,1761262235963,-182.30666,0.00036668,30]
[392218626,1761262235972,-182.30666,0.00036668,30]
[392218627,1761262235982,-182.30666,0.00036668,30]
[392218628,1761262235991,-182.30666,0.00036668,30]